[Event "Titled Tuesday Blitz April 25 Early 2023"]
[White "Nery Junior, Jose Antonio"]
[Black "Mammadov, Ziya"]
[WhiteFideId "2104822"]
[BlackFideId "13418890"]
[WhiteElo "2197"]
[BlackElo "1583"]
[Result "1-0"]
[Round "06"]
[TimeControl "180+2"]
[Date "2023.04.25"]
[WhiteClock "0:00:34"]
[BlackClock "0:00:12"]

1. e4 {[%clk 0:02:14]}  e6 {[%clk 0:02:57]} 2. d4 {[%clk 0:02:13]}  d5 {[%clk 0:02:57]} 3. Nd2 {[%clk 0:02:14]}  dxe4 {[%clk 0:02:57]} 4. Nxe4 {[%clk 0:02:15]}  Nd7 {[%clk 0:02:58]} 5. Nf3 {[%clk 0:02:14]}  Ngf6 {[%clk 0:02:58]} 6. Nxf6+ {[%clk 0:02:13]}  Nxf6 {[%clk 0:02:59]} 7. Bd3 {[%clk 0:02:13]}  c5 {[%clk 0:02:58]} 8. Qe2 {[%clk 0:02:14]}  cxd4 {[%clk 0:02:57]} 9. O-O {[%clk 0:02:15]}  Be7 {[%clk 0:02:56]} 10. Bf4 {[%clk 0:02:14]}  a6 {[%clk 0:02:56]} 11. Rad1 {[%clk 0:02:15]}  O-O {[%clk 0:02:55]} 12. Nxd4 {[%clk 0:02:15]}  g6 {[%clk 0:02:52]} 13. Bh6 {[%clk 0:02:14]}  Re8 {[%clk 0:02:51]} 14. c3 {[%clk 0:02:14]}  b5 {[%clk 0:02:50]} 15. Nc6 {[%clk 0:02:11]}  Qc7 {[%clk 0:02:49]} 16. Nxe7+ {[%clk 0:02:09]}  Qxe7 {[%clk 0:02:48]} 17. Qf3 {[%clk 0:02:07]}  Bb7 {[%clk 0:02:45]} 18. Qf4 {[%clk 0:02:02]}  Nd5 {[%clk 0:02:40]} 19. Qg3 {[%clk 0:02:00]}  Rad8 {[%clk 0:02:33]} 20. Bg5 {[%clk 0:01:58]}  f6 {[%clk 0:02:30]} 21. Bh6 {[%clk 0:01:56]}  Qf7 {[%clk 0:02:20]} 22. Rfe1 {[%clk 0:01:53]}  f5 {[%clk 0:02:17]} 23. Bg5 {[%clk 0:01:49]}  Rc8 {[%clk 0:02:09]} 24. h4 {[%clk 0:01:47]}  Qg7 {[%clk 0:01:58]} 25. Qd6 {[%clk 0:01:39]}  Qf7 {[%clk 0:01:35]} 26. a4 {[%clk 0:01:36]}  Nf6 {[%clk 0:01:31]} 27. axb5 {[%clk 0:01:33]}  Rcd8 {[%clk 0:01:23]} 28. Qe5 {[%clk 0:01:21]}  Ng4 {[%clk 0:01:14]} 29. Qe2 {[%clk 0:01:10]}  Rd5 {[%clk 0:00:59]} 30. bxa6 {[%clk 0:01:04]}  Ba8 {[%clk 0:00:59]} 31. Bc4 {[%clk 0:01:04]}  Re5 {[%clk 0:00:54]} 32. Qd3 {[%clk 0:00:56]}  Qc7 {[%clk 0:00:50]} 33. Rxe5 {[%clk 0:00:46]}  Nxe5 {[%clk 0:00:45]} 34. Qg3 {[%clk 0:00:46]}  Qxc4 {[%clk 0:00:33]} 35. Qxe5 {[%clk 0:00:42]}  Qxa6 {[%clk 0:00:33]} 36. Rd7 {[%clk 0:00:34]}  Qa1+ {[%clk 0:00:12]} 37. Kh2 {[%clk 0:00:34]} 1-0


[Site "https://www.chess.com"]

[Event "Titled Tuesday Blitz April 25 Early 2023"]
[White "Prado, Alexandra"]
[Black "Fuzesabonyilaci"]
[WhiteFideId "3301346"]
[WhiteElo "1759"]
[BlackElo "2315"]
[Result "0-1"]
[Round "06"]
[TimeControl "180+2"]
[Date "2023.04.25"]
[WhiteClock "0:00:11"]
[BlackClock "0:00:12"]

1. e4 {[%clk 0:02:59]}  e5 {[%clk 0:02:59]} 2. Nf3 {[%clk 0:02:55]}  Nc6 {[%clk 0:02:58]} 3. Bc4 {[%clk 0:02:54]}  Nf6 {[%clk 0:02:57]} 4. O-O {[%clk 0:02:52]}  h6 {[%clk 0:02:53]} 5. d4 {[%clk 0:02:35]}  exd4 {[%clk 0:02:51]} 6. e5 {[%clk 0:02:24]}  d5 {[%clk 0:02:41]} 7. exf6 {[%clk 0:02:24]}  dxc4 {[%clk 0:02:40]} 8. Re1+ {[%clk 0:02:16]}  Be6 {[%clk 0:02:37]} 9. fxg7 {[%clk 0:02:04]}  Bxg7 {[%clk 0:02:32]} 10. Nbd2 {[%clk 0:02:02]}  c3 {[%clk 0:02:18]} 11. Ne4 {[%clk 0:01:44]}  Qe7 {[%clk 0:02:07]} 12. bxc3 {[%clk 0:01:30]}  O-O-O {[%clk 0:01:53]} 13. cxd4 {[%clk 0:01:18]}  Nxd4 {[%clk 0:01:54]} 14. Rb1 {[%clk 0:00:55]}  Rhe8 {[%clk 0:01:34]} 15. Nxd4 {[%clk 0:00:31]}  Bxd4 {[%clk 0:01:26]} 16. Qe2 {[%clk 0:00:31]}  Bxa2 {[%clk 0:01:00]} 17. Rb5 {[%clk 0:00:17]}  Qh4 {[%clk 0:00:28]} 18. g3 {[%clk 0:00:16]}  Qh3 {[%clk 0:00:21]} 19. Qf1 {[%clk 0:00:14]}  Qd7 {[%clk 0:00:16]} 20. Bxh6 {[%clk 0:00:14]}  Bd5 {[%clk 0:00:12]} 21. Rxd5 {[%clk 0:00:13]}  Qxd5 {[%clk 0:00:12]} 22. Nf6 {[%clk 0:00:13]}  Bxf6 {[%clk 0:00:12]} 23. Bf4 {[%clk 0:00:12]}  Rxe1 {[%clk 0:00:11]} 24. Qxe1 {[%clk 0:00:13]}  Qd1 {[%clk 0:00:11]} 25. Qxd1 {[%clk 0:00:11]}  Rxd1+ {[%clk 0:00:11]} 26. Kg2 {[%clk 0:00:11]}  a5 {[%clk 0:00:12]} 0-1


[Site "https://www.chess.com"]

[Event "Titled Tuesday Blitz April 25 Early 2023"]
[White "Kohler, Aran"]
[Black "Kiseleva, Arina"]
[WhiteFideId "1002856"]
[BlackFideId "4164989"]
[WhiteElo "2279"]
[BlackElo "1708"]
[Result "1-0"]
[Round "06"]
[TimeControl "180+2"]
[Date "2023.04.25"]
[WhiteClock "0:00:26"]
[BlackClock "0:00:02"]

1. d4 {[%clk 0:02:59]}  Nf6 {[%clk 0:02:59]} 2. c3 {[%clk 0:02:59]}  e6 {[%clk 0:02:59]} 3. Bg5 {[%clk 0:02:59]}  Be7 {[%clk 0:02:57]} 4. Nd2 {[%clk 0:03:00]}  d5 {[%clk 0:02:56]} 5. e3 {[%clk 0:03:00]}  Nbd7 {[%clk 0:02:54]} 6. f4 {[%clk 0:02:59]}  c5 {[%clk 0:02:49]} 7. Bd3 {[%clk 0:02:57]}  h6 {[%clk 0:02:49]} 8. Bh4 {[%clk 0:02:56]}  Qc7 {[%clk 0:02:45]} 9. Nh3 {[%clk 0:02:53]}  b6 {[%clk 0:02:39]} 10. O-O {[%clk 0:02:52]}  Bb7 {[%clk 0:02:39]} 11. f5 {[%clk 0:02:38]}  e5 {[%clk 0:02:34]} 12. dxe5 {[%clk 0:02:29]}  Nxe5 {[%clk 0:02:28]} 13. Bg3 {[%clk 0:02:29]}  Bd6 {[%clk 0:02:26]} 14. Bxe5 {[%clk 0:02:19]}  Bxe5 {[%clk 0:02:26]} 15. Bb5+ {[%clk 0:02:20]}  Bc6 {[%clk 0:02:04]} 16. Bxc6+ {[%clk 0:02:15]}  Qxc6 {[%clk 0:02:05]} 17. Nf4 {[%clk 0:02:01]}  O-O-O {[%clk 0:01:55]} 18. a4 {[%clk 0:02:00]}  Kb8 {[%clk 0:01:44]} 19. Nd3 {[%clk 0:01:57]}  Bc7 {[%clk 0:01:41]} 20. b4 {[%clk 0:01:45]}  d4 {[%clk 0:01:17]} 21. cxd4 {[%clk 0:01:30]}  cxd4 {[%clk 0:01:16]} 22. e4 {[%clk 0:00:53]}  Nxe4 {[%clk 0:01:01]} 23. Qf3 {[%clk 0:00:48]}  Rhe8 {[%clk 0:00:43]} 24. Rfe1 {[%clk 0:00:48]}  Qd6 {[%clk 0:00:28]} 25. Nxe4 {[%clk 0:00:47]}  Qxh2+ {[%clk 0:00:28]} 26. Kf2 {[%clk 0:00:48]}  Qh4+ {[%clk 0:00:23]} 27. g3 {[%clk 0:00:42]}  Qe7 {[%clk 0:00:12]} 28. Nec5 {[%clk 0:00:35]}  bxc5 {[%clk 0:00:04]} 29. Rxe7 {[%clk 0:00:31]}  Rxe7 {[%clk 0:00:04]} 30. Nxc5 {[%clk 0:00:30]}  Bb6 {[%clk 0:00:04]} 31. Qf4+ {[%clk 0:00:29]}  Kc8 {[%clk 0:00:02]} 32. Rc1 {[%clk 0:00:26]} 1-0


[Site "https://www.chess.com"]

[Event "Titled Tuesday Blitz April 25 Early 2023"]
[White "Sovetbekova, Nurai"]
[Black "Flis, Pawel"]
[WhiteFideId "13801910"]
[BlackFideId "1112864"]
[WhiteElo "1857"]
[BlackElo "1822"]
[Result "1-0"]
[Round "06"]
[TimeControl "180+2"]
[Date "2023.04.25"]
[WhiteClock "0:00:50"]
[BlackClock "0:00:02"]

1. d4 {[%clk 0:03:00]}  c5 {[%clk 0:02:52]} 2. d5 {[%clk 0:03:00]}  Nf6 {[%clk 0:02:51]} 3. c4 {[%clk 0:03:00]}  b5 {[%clk 0:02:51]} 4. cxb5 {[%clk 0:02:59]}  a6 {[%clk 0:02:51]} 5. e3 {[%clk 0:02:59]}  axb5 {[%clk 0:02:43]} 6. Bxb5 {[%clk 0:02:57]}  Qa5+ {[%clk 0:02:42]} 7. Nc3 {[%clk 0:02:57]}  Bb7 {[%clk 0:02:42]} 8. Bd2 {[%clk 0:02:50]}  Qb6 {[%clk 0:02:42]} 9. a4 {[%clk 0:02:47]}  Nxd5 {[%clk 0:02:22]} 10. Nf3 {[%clk 0:02:42]}  e6 {[%clk 0:02:14]} 11. O-O {[%clk 0:02:38]}  Be7 {[%clk 0:02:13]} 12. Qe2 {[%clk 0:02:24]}  O-O {[%clk 0:02:12]} 13. e4 {[%clk 0:02:22]}  Nxc3 {[%clk 0:02:00]} 14. Bxc3 {[%clk 0:02:21]}  d5 {[%clk 0:01:53]} 15. exd5 {[%clk 0:02:20]}  Bxd5 {[%clk 0:01:53]} 16. Rfd1 {[%clk 0:02:05]}  Bd6 {[%clk 0:01:19]} 17. Ne5 {[%clk 0:01:53]}  Qb7 {[%clk 0:01:09]} 18. f3 {[%clk 0:01:53]}  Na6 {[%clk 0:01:08]} 19. Nc4 {[%clk 0:01:44]}  Be7 {[%clk 0:00:47]} 20. Ne3 {[%clk 0:01:37]}  Nc7 {[%clk 0:00:44]} 21. Nxd5 {[%clk 0:01:26]}  Nxd5 {[%clk 0:00:45]} 22. Rac1 {[%clk 0:01:25]}  Nxc3 {[%clk 0:00:44]} 23. Rxc3 {[%clk 0:01:23]}  Rad8 {[%clk 0:00:44]} 24. Rcd3 {[%clk 0:01:18]}  Rxd3 {[%clk 0:00:43]} 25. Rxd3 {[%clk 0:01:18]}  Rd8 {[%clk 0:00:41]} 26. Qd2 {[%clk 0:01:12]}  Rxd3 {[%clk 0:00:41]} 27. Qxd3 {[%clk 0:01:13]}  Qc7 {[%clk 0:00:41]} 28. Qd7 {[%clk 0:01:08]}  Qxd7 {[%clk 0:00:31]} 29. Bxd7 {[%clk 0:01:09]}  Bd8 {[%clk 0:00:27]} 30. Kf2 {[%clk 0:01:08]}  Kf8 {[%clk 0:00:27]} 31. Ke3 {[%clk 0:01:07]}  Ke7 {[%clk 0:00:28]} 32. Bb5 {[%clk 0:01:06]}  Kd6 {[%clk 0:00:28]} 33. Kd3 {[%clk 0:01:05]}  f5 {[%clk 0:00:22]} 34. Kc4 {[%clk 0:01:03]}  Ba5 {[%clk 0:00:21]} 35. Be8 {[%clk 0:00:59]}  g5 {[%clk 0:00:18]} 36. Kb5 {[%clk 0:00:57]}  Be1 {[%clk 0:00:13]} 37. a5 {[%clk 0:00:57]}  Ke7 {[%clk 0:00:13]} 38. a6 {[%clk 0:00:54]}  c4 {[%clk 0:00:04]} 39. a7 {[%clk 0:00:53]}  Kxe8 {[%clk 0:00:04]} 40. a8=Q+ {[%clk 0:00:53]}  Ke7 {[%clk 0:00:04]} 41. Kxc4 {[%clk 0:00:53]}  Kf6 {[%clk 0:00:03]} 42. Qh8+ {[%clk 0:00:51]}  Kg6 {[%clk 0:00:02]} 43. b4 {[%clk 0:00:50]}  g4 {[%clk 0:00:01]} 44. fxg4 {[%clk 0:00:50]}  fxg4 {[%clk 0:00:02]} 45. Qg8+ {[%clk 0:00:50]} 1-0


[Site "https://www.chess.com"]

[Event "Titled Tuesday Blitz April 25 Early 2023"]
[White "Castillo Pena, Patricia Evarista"]
[Black "Amitpal, Singh"]
[WhiteFideId "6412106"]
[BlackFideId "5012899"]
[WhiteElo "1919"]
[BlackElo "2107"]
[Result "1-0"]
[Round "06"]
[TimeControl "180+2"]
[Date "2023.04.25"]
[WhiteClock "0:01:09"]
[BlackClock "0:00:47"]

1. d4 {[%clk 0:02:59]}  Nf6 {[%clk 0:02:58]} 2. Nf3 {[%clk 0:02:57]}  e6 {[%clk 0:02:56]} 3. e3 {[%clk 0:02:56]}  d5 {[%clk 0:02:56]} 4. Bd3 {[%clk 0:02:56]}  Bd6 {[%clk 0:02:55]} 5. O-O {[%clk 0:02:56]}  c5 {[%clk 0:02:53]} 6. b3 {[%clk 0:02:55]}  Nc6 {[%clk 0:02:53]} 7. Bb2 {[%clk 0:02:55]}  cxd4 {[%clk 0:02:52]} 8. exd4 {[%clk 0:02:55]}  Qb6 {[%clk 0:02:48]} 9. Nbd2 {[%clk 0:02:41]}  Nb4 {[%clk 0:02:36]} 10. Be2 {[%clk 0:02:38]}  Qc7 {[%clk 0:02:29]} 11. c3 {[%clk 0:02:36]}  Nc6 {[%clk 0:02:29]} 12. Bd3 {[%clk 0:02:34]}  e5 {[%clk 0:02:23]} 13. dxe5 {[%clk 0:02:31]}  Nxe5 {[%clk 0:02:23]} 14. Nxe5 {[%clk 0:02:31]}  Bxe5 {[%clk 0:02:23]} 15. Nf3 {[%clk 0:02:28]}  Bg4 {[%clk 0:02:15]} 16. Re1 {[%clk 0:02:25]}  Bxf3 {[%clk 0:02:04]} 17. Qxf3 {[%clk 0:02:22]}  O-O {[%clk 0:02:03]} 18. h3 {[%clk 0:02:17]}  Rfe8 {[%clk 0:01:36]} 19. Rac1 {[%clk 0:02:14]}  Bd6 {[%clk 0:01:30]} 20. c4 {[%clk 0:02:04]}  Rxe1+ {[%clk 0:01:18]} 21. Rxe1 {[%clk 0:02:03]}  dxc4 {[%clk 0:01:18]} 22. Bxc4 {[%clk 0:01:55]}  Be7 {[%clk 0:01:00]} 23. Qf5 {[%clk 0:01:33]}  Qc5 {[%clk 0:00:52]} 24. Qf3 {[%clk 0:01:22]}  Qh5 {[%clk 0:00:46]} 25. Qxh5 {[%clk 0:01:09]}  Nxh5 {[%clk 0:00:47]} 26. Rxe7 {[%clk 0:01:09]} 1-0


[Site "https://www.chess.com"]

[Event "Titled Tuesday Blitz April 25 Early 2023"]
[White "Lohani, Sujana"]
[Black "Larina, Maria"]
[WhiteFideId "12311987"]
[BlackFideId "24113182"]
[WhiteElo "1718"]
[BlackElo "1848"]
[Result "1-0"]
[Round "06"]
[TimeControl "180+2"]
[Date "2023.04.25"]
[WhiteClock "0:00:17"]
[BlackClock "0:00:03"]

1. d4 {[%clk 0:03:00]}  f5 {[%clk 0:02:50]} 2. e4 {[%clk 0:02:49]}  fxe4 {[%clk 0:02:50]} 3. Nc3 {[%clk 0:02:24]}  Nf6 {[%clk 0:02:19]} 4. Bg5 {[%clk 0:02:18]}  Nc6 {[%clk 0:02:15]} 5. d5 {[%clk 0:02:13]}  Ne5 {[%clk 0:02:07]} 6. Qd4 {[%clk 0:02:04]}  Nf7 {[%clk 0:02:01]} 7. Bxf6 {[%clk 0:02:02]}  gxf6 {[%clk 0:01:52]} 8. Nxe4 {[%clk 0:02:00]}  f5 {[%clk 0:01:49]} 9. Ng3 {[%clk 0:01:40]}  c5 {[%clk 0:01:08]} 10. Qc3 {[%clk 0:01:22]}  d6 {[%clk 0:01:02]} 11. O-O-O {[%clk 0:01:14]}  Bh6+ {[%clk 0:00:56]} 12. Kb1 {[%clk 0:01:14]}  O-O {[%clk 0:00:56]} 13. Bd3 {[%clk 0:01:07]}  Bg7 {[%clk 0:00:56]} 14. Qd2 {[%clk 0:01:01]}  Qb6 {[%clk 0:00:52]} 15. c3 {[%clk 0:00:52]}  Ne5 {[%clk 0:00:47]} 16. Nf3 {[%clk 0:00:46]}  Nxd3 {[%clk 0:00:41]} 17. Qxd3 {[%clk 0:00:45]}  f4 {[%clk 0:00:36]} 18. Ne4 {[%clk 0:00:42]}  Bf5 {[%clk 0:00:30]} 19. Rhe1 {[%clk 0:00:41]}  a5 {[%clk 0:00:23]} 20. Nh4 {[%clk 0:00:40]}  Bg4 {[%clk 0:00:18]} 21. f3 {[%clk 0:00:39]}  Bh5 {[%clk 0:00:13]} 22. Ng5 {[%clk 0:00:36]}  Bg6 {[%clk 0:00:13]} 23. Nxg6 {[%clk 0:00:36]}  hxg6 {[%clk 0:00:14]} 24. Qxg6 {[%clk 0:00:34]}  Rf6 {[%clk 0:00:12]} 25. Qh7+ {[%clk 0:00:19]}  Kf8 {[%clk 0:00:10]} 26. Rxe7 {[%clk 0:00:18]}  Rh6 {[%clk 0:00:03]} 27. Qxg7# {[%clk 0:00:17]} 1-0


[Site "https://www.chess.com"]

[Event "Titled Tuesday Blitz April 25 Early 2023"]
[White "Nakamura, Hikaru"]
[Black "Hakobyan, Aram"]
[WhiteFideId "2016192"]
[BlackFideId "13306677"]
[WhiteElo "2885"]
[BlackElo "2584"]
[Result "1-0"]
[Round "07"]
[TimeControl "180+2"]
[Date "2023.04.25"]
[WhiteClock "0:00:37"]
[BlackClock "0:00:04"]

1. Nf3 {[%clk 0:03:00]}  g6 {[%clk 0:02:57]} 2. e4 {[%clk 0:03:01]}  Bg7 {[%clk 0:02:58]} 3. d4 {[%clk 0:03:01]}  Nf6 {[%clk 0:02:59]} 4. e5 {[%clk 0:02:57]}  Ne4 {[%clk 0:02:59]} 5. Bd3 {[%clk 0:02:45]}  d5 {[%clk 0:02:59]} 6. O-O {[%clk 0:02:45]}  O-O {[%clk 0:02:57]} 7. Re1 {[%clk 0:02:46]}  Bf5 {[%clk 0:02:55]} 8. Nh4 {[%clk 0:02:43]}  e6 {[%clk 0:02:50]} 9. Nxf5 {[%clk 0:02:28]}  exf5 {[%clk 0:02:50]} 10. c4 {[%clk 0:02:21]}  Nc6 {[%clk 0:02:43]} 11. f3 {[%clk 0:02:04]}  Nxd4 {[%clk 0:02:34]} 12. cxd5 {[%clk 0:02:00]}  Nc5 {[%clk 0:02:15]} 13. Bc4 {[%clk 0:01:52]}  Qh4 {[%clk 0:02:16]} 14. f4 {[%clk 0:01:49]}  Ne4 {[%clk 0:01:50]} 15. g3 {[%clk 0:01:37]}  Nxg3 {[%clk 0:01:43]} 16. Qxd4 {[%clk 0:01:37]}  Ne4 {[%clk 0:01:36]} 17. Re2 {[%clk 0:01:25]}  Ng5 {[%clk 0:01:00]} 18. Qe3 {[%clk 0:01:18]}  Bxe5 {[%clk 0:00:30]} 19. Qg3 {[%clk 0:01:08]}  Nh3+ {[%clk 0:00:27]} 20. Kf1 {[%clk 0:00:47]}  Qxg3 {[%clk 0:00:09]} 21. hxg3 {[%clk 0:00:47]}  Bd4 {[%clk 0:00:09]} 22. Kg2 {[%clk 0:00:46]}  Ng1 {[%clk 0:00:10]} 23. Rd2 {[%clk 0:00:38]}  Bb6 {[%clk 0:00:09]} 24. Nc3 {[%clk 0:00:38]}  Rfe8 {[%clk 0:00:08]} 25. Rd1 {[%clk 0:00:38]}  Re7 {[%clk 0:00:03]} 26. Bd2 {[%clk 0:00:38]}  Rae8 {[%clk 0:00:03]} 27. Rxg1 {[%clk 0:00:39]}  Bxg1 {[%clk 0:00:03]} 28. Kxg1 {[%clk 0:00:40]}  a6 {[%clk 0:00:02]} 29. a4 {[%clk 0:00:40]}  Kg7 {[%clk 0:00:02]} 30. Kf2 {[%clk 0:00:39]}  f6 {[%clk 0:00:03]} 31. Re1 {[%clk 0:00:37]}  h5 {[%clk 0:00:03]} 32. Rxe7+ {[%clk 0:00:37]}  Rxe7 {[%clk 0:00:04]} 33. b4 {[%clk 0:00:37]}  Re8 {[%clk 0:00:05]} 34. a5 {[%clk 0:00:37]}  Rd8 {[%clk 0:00:04]} 35. Na4 {[%clk 0:00:37]}  c6 {[%clk 0:00:04]} 36. Nc5 {[%clk 0:00:37]}  cxd5 {[%clk 0:00:04]} 37. Ne6+ {[%clk 0:00:37]} 1-0


[Site "https://www.chess.com"]

[Event "Titled Tuesday Blitz April 25 Early 2023"]
[White "Pranesh M"]
[Black "So, Wesley"]
[WhiteFideId "35028600"]
[BlackFideId "5202213"]
[WhiteElo "2437"]
[BlackElo "2749"]
[Result "0-1"]
[Round "07"]
[TimeControl "180+2"]
[Date "2023.04.25"]
[WhiteClock "0:00:19"]
[BlackClock "0:00:01"]

1. e4 {[%clk 0:03:00]}  e5 {[%clk 0:02:59]} 2. Nf3 {[%clk 0:03:01]}  Nc6 {[%clk 0:02:59]} 3. Bb5 {[%clk 0:03:01]}  g6 {[%clk 0:02:59]} 4. d4 {[%clk 0:03:00]}  exd4 {[%clk 0:02:59]} 5. c3 {[%clk 0:03:01]}  a6 {[%clk 0:02:53]} 6. Ba4 {[%clk 0:03:00]}  Bg7 {[%clk 0:02:41]} 7. cxd4 {[%clk 0:03:00]}  Nge7 {[%clk 0:02:38]} 8. O-O {[%clk 0:03:00]}  b5 {[%clk 0:02:38]} 9. Bc2 {[%clk 0:02:59]}  d5 {[%clk 0:02:34]} 10. exd5 {[%clk 0:02:55]}  Nxd5 {[%clk 0:02:31]} 11. Re1+ {[%clk 0:02:55]}  Be6 {[%clk 0:02:31]} 12. Bg5 {[%clk 0:02:47]}  Qd7 {[%clk 0:02:22]} 13. Nbd2 {[%clk 0:02:41]}  h6 {[%clk 0:02:19]} 14. Ne4 {[%clk 0:02:14]}  hxg5 {[%clk 0:02:18]} 15. Nc5 {[%clk 0:02:13]}  Qd6 {[%clk 0:02:19]} 16. Nxe6 {[%clk 0:01:38]}  fxe6 {[%clk 0:02:19]} 17. Bxg6+ {[%clk 0:01:38]}  Kd7 {[%clk 0:02:10]} 18. Bf7 {[%clk 0:01:38]}  Rh6 {[%clk 0:01:53]} 19. g3 {[%clk 0:01:08]}  Qe7 {[%clk 0:01:50]} 20. Bh5 {[%clk 0:00:46]}  Rxh5 {[%clk 0:01:46]} 21. Ne5+ {[%clk 0:00:47]}  Bxe5 {[%clk 0:01:46]} 22. Qxh5 {[%clk 0:00:48]}  Bxd4 {[%clk 0:01:45]} 23. Rad1 {[%clk 0:00:48]}  Rf8 {[%clk 0:01:44]} 24. Re2 {[%clk 0:00:48]}  Qf6 {[%clk 0:01:37]} 25. Kg2 {[%clk 0:00:31]}  Kd6 {[%clk 0:01:36]} 26. Rdd2 {[%clk 0:00:23]}  e5 {[%clk 0:01:29]} 27. Qg4 {[%clk 0:00:22]}  Nce7 {[%clk 0:01:28]} 28. a3 {[%clk 0:00:21]}  Qf5 {[%clk 0:01:25]} 29. Qh5 {[%clk 0:00:19]}  Ng6 {[%clk 0:01:23]} 30. Qh6 {[%clk 0:00:19]}  Rh8 {[%clk 0:01:19]} 31. Qg7 {[%clk 0:00:19]}  Qh3+ {[%clk 0:01:18]} 32. Kf3 {[%clk 0:00:20]}  Nh4+ {[%clk 0:01:06]} 33. Ke4 {[%clk 0:00:19]}  Qf5# {[%clk 0:00:01]} 0-1


[Site "https://www.chess.com"]

[Event "Titled Tuesday Blitz April 25 Early 2023"]
[White "Bluebaum, Matthias"]
[Black "Corrales Jimenez, Fidel"]
[WhiteFideId "24651516"]
[BlackFideId "3506690"]
[WhiteElo "2638"]
[BlackElo "2541"]
[Result "1/2-1/2"]
[Round "07"]
[TimeControl "180+2"]
[Date "2023.04.25"]
[WhiteClock "0:00:03"]
[BlackClock "0:00:05"]

1. d4 {[%clk 0:03:00]}  Nf6 {[%clk 0:02:59]} 2. c4 {[%clk 0:03:01]}  e6 {[%clk 0:02:59]} 3. Nc3 {[%clk 0:02:58]}  Bb4 {[%clk 0:02:59]} 4. e3 {[%clk 0:02:58]}  d5 {[%clk 0:02:56]} 5. Bd2 {[%clk 0:02:58]}  O-O {[%clk 0:02:55]} 6. Nf3 {[%clk 0:02:59]}  b6 {[%clk 0:02:55]} 7. cxd5 {[%clk 0:02:59]}  exd5 {[%clk 0:02:54]} 8. Rc1 {[%clk 0:02:59]}  a6 {[%clk 0:02:53]} 9. Bd3 {[%clk 0:02:59]}  Re8 {[%clk 0:02:42]} 10. O-O {[%clk 0:02:57]}  Nbd7 {[%clk 0:02:39]} 11. Qb3 {[%clk 0:02:33]}  Bxc3 {[%clk 0:02:36]} 12. Qxc3 {[%clk 0:02:26]}  c5 {[%clk 0:02:32]} 13. dxc5 {[%clk 0:02:20]}  Nxc5 {[%clk 0:02:31]} 14. Nd4 {[%clk 0:02:08]}  Bd7 {[%clk 0:02:30]} 15. Qa3 {[%clk 0:02:07]}  Nfe4 {[%clk 0:02:21]} 16. Bb4 {[%clk 0:01:45]}  Bb5 {[%clk 0:02:01]} 17. Bxc5 {[%clk 0:01:21]}  bxc5 {[%clk 0:01:53]} 18. Nf3 {[%clk 0:01:15]}  Qf6 {[%clk 0:01:44]} 19. Rfd1 {[%clk 0:01:13]}  Bxd3 {[%clk 0:01:09]} 20. Rxd3 {[%clk 0:01:14]}  Rad8 {[%clk 0:01:06]} 21. Rcd1 {[%clk 0:01:13]}  g6 {[%clk 0:00:58]} 22. Rxd5 {[%clk 0:01:08]}  Rxd5 {[%clk 0:00:54]} 23. Rxd5 {[%clk 0:01:09]}  Qc6 {[%clk 0:00:53]} 24. Qd3 {[%clk 0:01:02]}  c4 {[%clk 0:00:53]} 25. Qd1 {[%clk 0:00:37]}  c3 {[%clk 0:00:53]} 26. bxc3 {[%clk 0:00:37]}  Nxc3 {[%clk 0:00:54]} 27. Rd6 {[%clk 0:00:37]}  Qb5 {[%clk 0:00:50]} 28. Qd3 {[%clk 0:00:30]}  Nxa2 {[%clk 0:00:39]} 29. Qxb5 {[%clk 0:00:29]}  axb5 {[%clk 0:00:40]} 30. Rb6 {[%clk 0:00:29]}  Nc3 {[%clk 0:00:40]} 31. g4 {[%clk 0:00:29]}  Re4 {[%clk 0:00:36]} 32. h3 {[%clk 0:00:29]}  Rb4 {[%clk 0:00:17]} 33. Rb7 {[%clk 0:00:28]}  f6 {[%clk 0:00:14]} 34. Nd4 {[%clk 0:00:26]}  Rb2 {[%clk 0:00:14]} 35. Nc6 {[%clk 0:00:09]}  Ne4 {[%clk 0:00:13]} 36. f3 {[%clk 0:00:10]}  Nd6 {[%clk 0:00:11]} 37. Rb8+ {[%clk 0:00:04]}  Kg7 {[%clk 0:00:11]} 38. Nd4 {[%clk 0:00:02]}  Nc4 {[%clk 0:00:10]} 39. Rxb5 {[%clk 0:00:02]}  Rxb5 {[%clk 0:00:09]} 40. Nxb5 {[%clk 0:00:03]}  Nxe3 {[%clk 0:00:09]} 41. Kf2 {[%clk 0:00:04]}  Nd5 {[%clk 0:00:09]} 42. h4 {[%clk 0:00:05]}  Kf7 {[%clk 0:00:09]} 43. Nd4 {[%clk 0:00:05]}  Ke7 {[%clk 0:00:10]} 44. Ne2 {[%clk 0:00:06]}  Kd6 {[%clk 0:00:10]} 45. Ng3 {[%clk 0:00:06]}  Ke5 {[%clk 0:00:10]} 46. Ne4 {[%clk 0:00:07]}  f5 {[%clk 0:00:10]} 47. gxf5 {[%clk 0:00:06]}  gxf5 {[%clk 0:00:10]} 48. Ng5 {[%clk 0:00:07]}  h5 {[%clk 0:00:10]} 49. Nf7+ {[%clk 0:00:04]}  Kf6 {[%clk 0:00:09]} 50. Ng5 {[%clk 0:00:05]}  Nf4 {[%clk 0:00:09]} 51. Kg3 {[%clk 0:00:05]}  Ng6 {[%clk 0:00:09]} 52. f4 {[%clk 0:00:05]}  Ne7 {[%clk 0:00:09]} 53. Nf3 {[%clk 0:00:05]}  Ke6 {[%clk 0:00:09]} 54. Nd4+ {[%clk 0:00:05]}  Kd5 {[%clk 0:00:09]} 55. Nf3 {[%clk 0:00:05]}  Ke4 {[%clk 0:00:09]} 56. Ng5+ {[%clk 0:00:05]}  Ke3 {[%clk 0:00:10]} 57. Nf7 {[%clk 0:00:05]}  Ke4 {[%clk 0:00:07]} 58. Nd6+ {[%clk 0:00:03]}  Kd5 {[%clk 0:00:08]} 59. Nf7 {[%clk 0:00:04]}  Kd4 {[%clk 0:00:07]} 60. Kf3 {[%clk 0:00:04]}  Kd5 {[%clk 0:00:07]} 61. Ng5 {[%clk 0:00:03]}  Ng6 {[%clk 0:00:07]} 62. Kg3 {[%clk 0:00:03]}  Kd4 {[%clk 0:00:07]} 63. Ne6+ {[%clk 0:00:02]}  Ke3 {[%clk 0:00:08]} 64. Ng7 {[%clk 0:00:02]}  Nxh4 {[%clk 0:00:06]} 65. Nxh5 {[%clk 0:00:02]}  Ng6 {[%clk 0:00:05]} 66. Ng7 {[%clk 0:00:03]}  Nxf4 {[%clk 0:00:05]} 67. Nxf5+ {[%clk 0:00:03]} 1/2-1/2


[Site "https://www.chess.com"]